[Event "Titled Tuesday Blitz August 08 Early 2023"]
[White "Sethuraman, S.P."]
[Black "Kazakouski, Valery"]
[WhiteFideId "5021596"]
[BlackFideId "13507443"]
[WhiteElo "2794"]
[BlackElo "2895"]
[Result "0-1"]
[Round "7"]
[TimeControl "180+1"]
[Date "2023.08.08"]
[WhiteClock "0:00:00"]
[BlackClock "0:00:03"]
[Board "24"]

1. d4 {[%clk 0:03:00]}  Nf6 {[%clk 0:02:59]} 2. Nc3 {[%clk 0:03:01]}  d5 {[%clk 0:02:59]} 3. Bf4 {[%clk 0:03:00]}  c5 {[%clk 0:03:00]} 4. e3 {[%clk 0:02:59]}  cxd4 {[%clk 0:02:58]} 5. exd4 {[%clk 0:02:59]}  a6 {[%clk 0:02:58]} 6. Nf3 {[%clk 0:02:57]}  Nc6 {[%clk 0:02:58]} 7. Ne5 {[%clk 0:02:56]}  e6 {[%clk 0:02:58]} 8. Be2 {[%clk 0:02:50]}  Qb6 {[%clk 0:02:54]} 9. Na4 {[%clk 0:02:14]}  Qd8 {[%clk 0:01:55]} 10. O-O {[%clk 0:02:03]}  Bd6 {[%clk 0:01:54]} 11. Nxc6 {[%clk 0:01:55]}  bxc6 {[%clk 0:01:54]} 12. Bxd6 {[%clk 0:01:55]}  Qxd6 {[%clk 0:01:55]} 13. Nb6 {[%clk 0:01:55]}  Rb8 {[%clk 0:01:55]} 14. Nxc8 {[%clk 0:01:55]}  Rxc8 {[%clk 0:01:56]} 15. Bxa6 {[%clk 0:01:56]}  Rb8 {[%clk 0:01:57]} 16. b3 {[%clk 0:01:51]}  Qa3 {[%clk 0:01:55]} 17. Bd3 {[%clk 0:01:48]}  O-O {[%clk 0:01:54]} 18. Qc1 {[%clk 0:01:45]}  Ra8 {[%clk 0:01:53]} 19. c3 {[%clk 0:01:34]}  Rfc8 {[%clk 0:01:48]} 20. b4 {[%clk 0:01:32]}  Nd7 {[%clk 0:01:48]} 21. Qc2 {[%clk 0:01:31]}  g6 {[%clk 0:01:44]} 22. Rfb1 {[%clk 0:01:31]}  e5 {[%clk 0:01:38]} 23. dxe5 {[%clk 0:01:27]}  Nxe5 {[%clk 0:01:39]} 24. Bf1 {[%clk 0:01:27]}  Nd7 {[%clk 0:01:28]} 25. Qd2 {[%clk 0:01:23]}  Nb6 {[%clk 0:01:18]} 26. h4 {[%clk 0:01:21]}  c5 {[%clk 0:01:15]} 27. b5 {[%clk 0:01:16]}  Rd8 {[%clk 0:01:00]} 28. h5 {[%clk 0:01:14]}  d4 {[%clk 0:00:59]} 29. c4 {[%clk 0:00:53]}  Qc3 {[%clk 0:00:38]} 30. Qg5 {[%clk 0:00:47]}  d3 {[%clk 0:00:28]} 31. Qxc5 {[%clk 0:00:43]}  Na4 {[%clk 0:00:28]} 32. Qg5 {[%clk 0:00:24]}  d2 {[%clk 0:00:28]} 33. Be2 {[%clk 0:00:18]}  Re8 {[%clk 0:00:25]} 34. Bf3 {[%clk 0:00:15]}  Rad8 {[%clk 0:00:22]} 35. Bd5 {[%clk 0:00:13]}  Nb6 {[%clk 0:00:09]} 36. hxg6 {[%clk 0:00:13]}  Nxd5 {[%clk 0:00:09]} 37. gxf7+ {[%clk 0:00:11]}  Kxf7 {[%clk 0:00:10]} 38. cxd5 {[%clk 0:00:11]}  Re1+ {[%clk 0:00:07]} 39. Kh2 {[%clk 0:00:10]}  Rd6 {[%clk 0:00:06]} 40. Qf4+ {[%clk 0:00:10]}  Rf6 {[%clk 0:00:05]} 41. Qh4 {[%clk 0:00:08]}  Qe5+ {[%clk 0:00:04]} 42. f4 {[%clk 0:00:06]}  Rxf4 {[%clk 0:00:04]} 43. Qxh7+ {[%clk 0:00:05]}  Ke8 {[%clk 0:00:03]} 44. Qg8+ {[%clk 0:00:04]}  Rf8+ {[%clk 0:00:03]} 45. Qg3 {[%clk 0:00:02]}  Qxg3+ {[%clk 0:00:02]} 46. Kxg3 {[%clk 0:00:00]}  Rff1 {[%clk 0:00:03]} 0-1


[Site "https://www.chess.com"]

[Event "Titled Tuesday Blitz August 08 Early 2023"]
[White "Bernadskiy, Vitaliy"]
[Black "Nagare Kaivalya Sandip"]
[WhiteFideId "14100371"]
[BlackFideId "25957929"]
[WhiteElo "2868"]
[BlackElo "2677"]
[Result "1-0"]
[Round "7"]
[TimeControl "180+1"]
[Date "2023.08.08"]
[WhiteClock "0:00:21"]
[BlackClock "0:00:03"]
[Board "28"]

1. b3 {[%clk 0:03:00]}  e5 {[%clk 0:02:59]} 2. Bb2 {[%clk 0:03:01]}  Nc6 {[%clk 0:02:59]} 3. Nf3 {[%clk 0:03:01]}  e4 {[%clk 0:02:47]} 4. Nd4 {[%clk 0:03:01]}  Nf6 {[%clk 0:02:46]} 5. e3 {[%clk 0:03:00]}  d5 {[%clk 0:02:42]} 6. Nxc6 {[%clk 0:02:57]}  bxc6 {[%clk 0:02:42]} 7. d3 {[%clk 0:02:57]}  Bb4+ {[%clk 0:02:30]} 8. Nd2 {[%clk 0:02:57]}  Ng4 {[%clk 0:02:07]} 9. a3 {[%clk 0:02:38]}  Bd6 {[%clk 0:02:02]} 10. dxe4 {[%clk 0:02:33]}  Nxe3 {[%clk 0:01:32]} 11. fxe3 {[%clk 0:02:03]}  Qh4+ {[%clk 0:01:32]} 12. Ke2 {[%clk 0:02:03]}  Bg4+ {[%clk 0:01:21]} 13. Nf3 {[%clk 0:02:03]}  dxe4 {[%clk 0:01:20]} 14. Qd4 {[%clk 0:02:04]}  O-O-O {[%clk 0:00:41]} 15. Qxe4 {[%clk 0:01:55]}  Rhe8 {[%clk 0:00:41]} 16. Qc4 {[%clk 0:01:26]}  Qg5 {[%clk 0:00:30]} 17. Bd4 {[%clk 0:01:09]}  c5 {[%clk 0:00:29]} 18. h4 {[%clk 0:01:02]}  Qh6 {[%clk 0:00:24]} 19. Bxc5 {[%clk 0:01:02]}  Bf4 {[%clk 0:00:11]} 20. Kf2 {[%clk 0:00:54]}  Bxe3+ {[%clk 0:00:11]} 21. Kg3 {[%clk 0:00:54]}  Bxf3 {[%clk 0:00:08]} 22. gxf3 {[%clk 0:00:50]}  Qg6+ {[%clk 0:00:08]} 23. Kh2 {[%clk 0:00:41]}  Rd2+ {[%clk 0:00:08]} 24. Kh3 {[%clk 0:00:23]}  Qf5+ {[%clk 0:00:08]} 25. Qg4 {[%clk 0:00:23]}  Qxg4+ {[%clk 0:00:08]} 26. Kxg4 {[%clk 0:00:23]}  Bxc5 {[%clk 0:00:09]} 27. Bd3 {[%clk 0:00:23]}  g6 {[%clk 0:00:07]} 28. Rae1 {[%clk 0:00:23]}  f5+ {[%clk 0:00:07]} 29. Kg5 {[%clk 0:00:22]}  Be3+ {[%clk 0:00:06]} 30. Kf6 {[%clk 0:00:22]}  Bd4+ {[%clk 0:00:03]} 31. Kf7 {[%clk 0:00:22]}  Rxe1 {[%clk 0:00:04]} 32. Rxe1 {[%clk 0:00:23]}  Rh2 {[%clk 0:00:05]} 33. Bb5 {[%clk 0:00:21]}  Kb7 {[%clk 0:00:05]} 34. Re6 {[%clk 0:00:21]}  Rxh4 {[%clk 0:00:03]} 35. Ba6+ {[%clk 0:00:21]} 1-0


[Site "https://www.chess.com"]

[Event "Titled Tuesday Blitz August 08 Early 2023"]
[White "Yaran, Siar"]
[Black "Pranav Anand"]
[WhiteFideId "6323006"]
[BlackFideId "46626786"]
[WhiteElo "2682"]
[BlackElo "2868"]
[Result "1-0"]
[Round "7"]
[TimeControl "180+1"]
[Date "2023.08.08"]
[WhiteClock "0:00:14"]
[BlackClock "0:00:02"]
[Board "29"]

1. e4 {[%clk 0:03:00]}  e5 {[%clk 0:02:59]} 2. f4 {[%clk 0:03:00]}  exf4 {[%clk 0:02:58]} 3. Nf3 {[%clk 0:02:59]}  Nf6 {[%clk 0:02:59]} 4. e5 {[%clk 0:02:57]}  Nh5 {[%clk 0:02:59]} 5. d4 {[%clk 0:02:51]}  g6 {[%clk 0:02:59]} 6. Nc3 {[%clk 0:02:46]}  d6 {[%clk 0:02:59]} 7. Qe2 {[%clk 0:02:46]}  d5 {[%clk 0:02:48]} 8. Bd2 {[%clk 0:02:36]}  Be6 {[%clk 0:02:47]} 9. O-O-O {[%clk 0:02:36]}  c6 {[%clk 0:02:46]} 10. Kb1 {[%clk 0:02:33]}  Be7 {[%clk 0:02:45]} 11. Qf2 {[%clk 0:02:31]}  Nd7 {[%clk 0:02:44]} 12. Ne2 {[%clk 0:02:26]}  g5 {[%clk 0:02:41]} 13. h4 {[%clk 0:02:26]}  g4 {[%clk 0:02:21]} 14. Ng5 {[%clk 0:02:24]}  Bxg5 {[%clk 0:02:01]} 15. hxg5 {[%clk 0:02:21]}  Qxg5 {[%clk 0:02:01]} 16. g3 {[%clk 0:02:10]}  O-O-O {[%clk 0:01:54]} 17. gxf4 {[%clk 0:02:07]}  Qg6 {[%clk 0:01:55]} 18. Rxh5 {[%clk 0:01:45]}  Qxh5 {[%clk 0:01:42]} 19. Ng3 {[%clk 0:01:46]}  Qh4 {[%clk 0:01:42]} 20. Bd3 {[%clk 0:01:47]}  h5 {[%clk 0:01:22]} 21. Rh1 {[%clk 0:01:42]}  Qe7 {[%clk 0:01:22]} 22. f5 {[%clk 0:01:23]}  h4 {[%clk 0:01:20]} 23. Ne2 {[%clk 0:01:18]}  Rdg8 {[%clk 0:01:16]} 24. Nf4 {[%clk 0:01:16]}  Nf8 {[%clk 0:01:10]} 25. fxe6 {[%clk 0:01:08]}  fxe6 {[%clk 0:01:11]} 26. a3 {[%clk 0:01:03]}  Qf7 {[%clk 0:01:06]} 27. Qg2 {[%clk 0:00:50]}  Kb8 {[%clk 0:00:59]} 28. b4 {[%clk 0:00:43]}  Nd7 {[%clk 0:00:56]} 29. b5 {[%clk 0:00:29]}  c5 {[%clk 0:00:54]} 30. c4 {[%clk 0:00:29]}  cxd4 {[%clk 0:00:44]} 31. cxd5 {[%clk 0:00:28]}  Nxe5 {[%clk 0:00:45]} 32. dxe6 {[%clk 0:00:26]}  Qf8 {[%clk 0:00:34]} 33. Qe4 {[%clk 0:00:19]}  Nxd3 {[%clk 0:00:31]} 34. Qxd3 {[%clk 0:00:19]}  Qd6 {[%clk 0:00:28]} 35. Rf1 {[%clk 0:00:15]}  Ka8 {[%clk 0:00:17]} 36. Bb4 {[%clk 0:00:16]}  Qe5 {[%clk 0:00:16]} 37. e7 {[%clk 0:00:16]}  h3 {[%clk 0:00:15]} 38. Ng6 {[%clk 0:00:16]}  Rxg6 {[%clk 0:00:04]} 39. Qxg6 {[%clk 0:00:17]}  Rb8 {[%clk 0:00:05]} 40. Re1 {[%clk 0:00:15]}  Qxb5 {[%clk 0:00:04]} 41. e8=Q {[%clk 0:00:14]}  Qxe8 {[%clk 0:00:02]} 42. Rxe8 {[%clk 0:00:14]} 1-0


[Site "https://www.chess.com"]

[Event "Titled Tuesday Blitz August 08 Early 2023"]
[White "Yeletsky, Ivan"]
[Black "Goltsev, Dmitry"]
[WhiteFideId "24180327"]
[BlackFideId "24176710"]
[WhiteElo "2860"]
[BlackElo "2644"]
[Result "1-0"]
[Round "7"]
[TimeControl "180+1"]
[Date "2023.08.08"]
[WhiteClock "0:00:06"]
[BlackClock "0:00:07"]
[Board "30"]

1. d4 {[%clk 0:03:00]}  Nf6 {[%clk 0:02:59]} 2. c4 {[%clk 0:03:01]}  e6 {[%clk 0:02:58]} 3. Bf4 {[%clk 0:02:59]}  b6 {[%clk 0:02:58]} 4. a3 {[%clk 0:02:50]}  Bb7 {[%clk 0:02:58]} 5. Nc3 {[%clk 0:02:50]}  Be7 {[%clk 0:02:58]} 6. d5 {[%clk 0:02:50]}  exd5 {[%clk 0:02:58]} 7. cxd5 {[%clk 0:02:51]}  O-O {[%clk 0:02:58]} 8. Nf3 {[%clk 0:02:46]}  Re8 {[%clk 0:02:58]} 9. e3 {[%clk 0:02:42]}  a5 {[%clk 0:02:55]} 10. Bc4 {[%clk 0:02:20]}  d6 {[%clk 0:02:53]} 11. Nd4 {[%clk 0:02:16]}  Nbd7 {[%clk 0:02:53]} 12. O-O {[%clk 0:02:09]}  Ne5 {[%clk 0:02:51]} 13. Bb5 {[%clk 0:02:05]}  Rf8 {[%clk 0:02:48]} 14. Nf5 {[%clk 0:01:50]}  Ng6 {[%clk 0:02:44]} 15. Bg3 {[%clk 0:01:47]}  Bc8 {[%clk 0:02:41]} 16. Nd4 {[%clk 0:01:43]}  Bd7 {[%clk 0:02:37]} 17. Bc6 {[%clk 0:01:36]}  Rb8 {[%clk 0:02:35]} 18. Rc1 {[%clk 0:01:36]}  Re8 {[%clk 0:02:31]} 19. Ncb5 {[%clk 0:01:22]}  Rc8 {[%clk 0:02:13]} 20. Na7 {[%clk 0:01:22]}  Rb8 {[%clk 0:02:12]} 21. Nab5 {[%clk 0:01:21]}  Rc8 {[%clk 0:02:13]} 22. Bb7 {[%clk 0:01:12]}  Rb8 {[%clk 0:01:59]} 23. Rxc7 {[%clk 0:01:11]}  Bxb5 {[%clk 0:01:52]} 24. Nxb5 {[%clk 0:01:12]}  Ne4 {[%clk 0:01:53]} 25. Bc6 {[%clk 0:01:10]}  Rf8 {[%clk 0:01:47]} 26. Rd7 {[%clk 0:00:53]}  Qc8 {[%clk 0:01:47]} 27. Qe2 {[%clk 0:00:31]}  Qa6 {[%clk 0:01:08]} 28. Ra7 {[%clk 0:00:28]}  Qc8 {[%clk 0:01:07]} 29. Rd7 {[%clk 0:00:20]}  Qa6 {[%clk 0:01:06]} 30. Qc2 {[%clk 0:00:21]}  Nxg3 {[%clk 0:00:57]} 31. hxg3 {[%clk 0:00:22]}  Rfd8 {[%clk 0:00:56]} 32. Ra7 {[%clk 0:00:19]}  Qc8 {[%clk 0:00:56]} 33. Rc1 {[%clk 0:00:17]}  Qg4 {[%clk 0:00:53]} 34. Qc4 {[%clk 0:00:14]}  Qh5 {[%clk 0:00:51]} 35. Rd7 {[%clk 0:00:06]}  Ne5 {[%clk 0:00:49]} 36. Rxd8+ {[%clk 0:00:06]}  Rxd8 {[%clk 0:00:50]} 37. Qf4 {[%clk 0:00:06]}  Ng4 {[%clk 0:00:47]} 38. Rc4 {[%clk 0:00:04]}  f5 {[%clk 0:00:43]} 39. Nc7 {[%clk 0:00:02]}  Qh2+ {[%clk 0:00:42]} 40. Kf1 {[%clk 0:00:02]}  Qh1+ {[%clk 0:00:43]} 41. Ke2 {[%clk 0:00:03]}  Qxg2 {[%clk 0:00:42]} 42. Ne6 {[%clk 0:00:03]}  Rc8 {[%clk 0:00:36]} 43. Rc1 {[%clk 0:00:04]}  g6 {[%clk 0:00:31]} 44. Qf3 {[%clk 0:00:04]}  Qxf3+ {[%clk 0:00:23]} 45. Kxf3 {[%clk 0:00:05]}  Kf7 {[%clk 0:00:24]} 46. Ke2 {[%clk 0:00:03]}  Ne5 {[%clk 0:00:23]} 47. Nd4 {[%clk 0:00:04]}  Bf6 {[%clk 0:00:21]} 48. Nb5 {[%clk 0:00:04]}  Ke7 {[%clk 0:00:22]} 49. b3 {[%clk 0:00:04]}  h5 {[%clk 0:00:19]} 50. f3 {[%clk 0:00:02]}  g5 {[%clk 0:00:20]} 51. Nd4 {[%clk 0:00:02]}  Nxc6 {[%clk 0:00:09]} 52. Nxf5+ {[%clk 0:00:03]}  Kd7 {[%clk 0:00:09]} 53. dxc6+ {[%clk 0:00:03]}  Rxc6 {[%clk 0:00:10]} 54. Rxc6 {[%clk 0:00:02]}  Kxc6 {[%clk 0:00:09]} 55. e4 {[%clk 0:00:03]}  d5 {[%clk 0:00:02]} 56. Kd3 {[%clk 0:00:03]}  dxe4+ {[%clk 0:00:02]} 57. Kxe4 {[%clk 0:00:03]}  h4 {[%clk 0:00:03]} 58. gxh4 {[%clk 0:00:02]}  gxh4 {[%clk 0:00:04]} 59. Kf4 {[%clk 0:00:02]}  Kd5 {[%clk 0:00:03]} 60. Kg4 {[%clk 0:00:03]}  b5 {[%clk 0:00:03]} 61. Nxh4 {[%clk 0:00:02]}  Kd4 {[%clk 0:00:04]} 62. Nf5+ {[%clk 0:00:01]}  Kc3 {[%clk 0:00:04]} 63. Nd6 {[%clk 0:00:02]}  b4 {[%clk 0:00:04]} 64. axb4 {[%clk 0:00:02]}  axb4 {[%clk 0:00:05]} 65. Ne4+ {[%clk 0:00:03]}  Kxb3 {[%clk 0:00:05]} 66. Nxf6 {[%clk 0:00:04]}  Kc4 {[%clk 0:00:06]} 67. Ne4 {[%clk 0:00:04]}  Kd3 {[%clk 0:00:06]} 68. Kf4 {[%clk 0:00:03]}  Kd4 {[%clk 0:00:06]} 69. Nd2 {[%clk 0:00:02]}  Kd3 {[%clk 0:00:07]} 70. Nb3 {[%clk 0:00:03]}  Kc4 {[%clk 0:00:07]} 71. Nc1 {[%clk 0:00:02]}  Kd4 {[%clk 0:00:06]} 72. Kg4 {[%clk 0:00:02]}  Ke3 {[%clk 0:00:07]} 73. f4 {[%clk 0:00:03]}  Kd2 {[%clk 0:00:08]} 74. Nb3+ {[%clk 0:00:03]}  Kc3 {[%clk 0:00:08]} 75. Na5 {[%clk 0:00:04]}  Kd4 {[%clk 0:00:08]} 76. f5 {[%clk 0:00:04]}  Ke5 {[%clk 0:00:08]} 77. Kg5 {[%clk 0:00:05]}  Kd6 {[%clk 0:00:09]} 78. f6 {[%clk 0:00:05]}  b3 {[%clk 0:00:08]} 79. Nxb3 {[%clk 0:00:05]}  Ke5 {[%clk 0:00:05]} 80. Kg6 {[%clk 0:00:06]}  Ke6 {[%clk 0:00:05]} 81. f7 {[%clk 0:00:06]}  Kd5 {[%clk 0:00:06]} 82. Kg7 {[%clk 0:00:07]}  Kc4 {[%clk 0:00:07]} 83. Nc1 {[%clk 0:00:07]}  Kc3 {[%clk 0:00:07]} 84. f8=Q {[%clk 0:00:08]}  Kb2 {[%clk 0:00:08]} 85. Qc5 {[%clk 0:00:07]}  Ka1 {[%clk 0:00:07]} 86. Nd3 {[%clk 0:00:06]} 1-0


[Site "https://www.chess.com"]

[Event "Titled Tuesday Blitz August 08 Early 2023"]
[White "Bharath Subramaniyam H"]
[Black "Malek, Jan"]
[WhiteFideId "46634827"]
[BlackFideId "21864080"]
[WhiteElo "2830"]
[BlackElo "2618"]
[Result "1-0"]
[Round "7"]
[TimeControl "180+1"]
[Date "2023.08.08"]
[WhiteClock "0:00:12"]
[BlackClock "0:00:00"]
[Board "34"]

1. e4 {[%clk 0:02:57]}  e6 {[%clk 0:02:57]} 2. d4 {[%clk 0:02:54]}  g6 {[%clk 0:02:55]} 3. Nc3 {[%clk 0:02:54]}  Bg7 {[%clk 0:02:55]} 4. h4 {[%clk 0:02:54]}  h6 {[%clk 0:02:55]} 5. Nf3 {[%clk 0:02:54]}  Ne7 {[%clk 0:02:55]} 6. Bf4 {[%clk 0:02:51]}  d6 {[%clk 0:02:55]} 7. Qd2 {[%clk 0:02:51]}  Nd7 {[%clk 0:02:55]} 8. O-O-O {[%clk 0:02:49]}  b6 {[%clk 0:02:55]} 9. d5 {[%clk 0:02:39]}  e5 {[%clk 0:02:53]} 10. Be3 {[%clk 0:02:39]}  a6 {[%clk 0:02:53]} 11. g4 {[%clk 0:02:33]}  Nf6 {[%clk 0:02:50]} 12. g5 {[%clk 0:02:33]}  Ng4 {[%clk 0:02:50]} 13. Bh3 {[%clk 0:02:33]}  Nxe3 {[%clk 0:02:38]} 14. Qxe3 {[%clk 0:02:29]}  Bxh3 {[%clk 0:02:37]} 15. Rxh3 {[%clk 0:02:28]}  hxg5 {[%clk 0:02:36]} 16. Nxg5 {[%clk 0:02:27]}  Ng8 {[%clk 0:02:35]} 17. Rhh1 {[%clk 0:02:15]}  Nf6 {[%clk 0:02:33]} 18. Ne2 {[%clk 0:02:15]}  Qe7 {[%clk 0:02:26]} 19. Qc3 {[%clk 0:02:13]}  O-O-O {[%clk 0:02:13]} 20. Qc6 {[%clk 0:02:11]}  Kb8 {[%clk 0:02:13]} 21. Rh3 {[%clk 0:02:06]}  Ka7 {[%clk 0:01:18]} 22. Ra3 {[%clk 0:01:54]}  Qd7 {[%clk 0:01:09]} 23. Nxf7 {[%clk 0:01:52]}  Bh6+ {[%clk 0:00:34]} 24. Nxh6 {[%clk 0:01:08]}  Qxc6 {[%clk 0:00:30]} 25. dxc6 {[%clk 0:01:07]}  Rxh6 {[%clk 0:00:31]} 26. Nc3 {[%clk 0:01:03]}  a5 {[%clk 0:00:23]} 27. Nb5+ {[%clk 0:01:03]}  Kb8 {[%clk 0:00:23]} 28. b4 {[%clk 0:01:03]}  axb4 {[%clk 0:00:18]} 29. Ra7 {[%clk 0:01:02]}  Ne8 {[%clk 0:00:14]} 30. Rb7+ {[%clk 0:01:01]}  Ka8 {[%clk 0:00:14]} 31. a3 {[%clk 0:01:00]}  b3 {[%clk 0:00:11]} 32. cxb3 {[%clk 0:00:52]}  Rxh4 {[%clk 0:00:11]} 33. Nxc7+ {[%clk 0:00:43]}  Nxc7 {[%clk 0:00:10]} 34. Rxc7 {[%clk 0:00:44]}  Rxe4 {[%clk 0:00:10]} 35. Rd7 {[%clk 0:00:44]}  Rc8 {[%clk 0:00:09]} 36. R1xd6 {[%clk 0:00:45]}  Rd4 {[%clk 0:00:08]} 37. Rxd4 {[%clk 0:00:41]}  exd4 {[%clk 0:00:08]} 38. Rd6 {[%clk 0:00:41]}  g5 {[%clk 0:00:06]} 39. Kd2 {[%clk 0:00:41]}  Kb8 {[%clk 0:00:06]} 40. Rf6 {[%clk 0:00:37]}  Kc7 {[%clk 0:00:05]} 41. Kd3 {[%clk 0:00:36]}  Rd8 {[%clk 0:00:05]} 42. a4 {[%clk 0:00:33]}  Rd5 {[%clk 0:00:05]} 43. b4 {[%clk 0:00:34]}  Rd8 {[%clk 0:00:03]} 44. b5 {[%clk 0:00:33]}  Rd5 {[%clk 0:00:03]} 45. Rf7+ {[%clk 0:00:34]}  Kc8 {[%clk 0:00:03]} 46. Rb7 {[%clk 0:00:32]}  Rf5 {[%clk 0:00:02]} 47. Rxb6 {[%clk 0:00:31]}  Rxf2 {[%clk 0:00:03]} 48. Ra6 {[%clk 0:00:31]}  g4 {[%clk 0:00:02]} 49. b6 {[%clk 0:00:31]}  Kb8 {[%clk 0:00:01]} 50. c7+ {[%clk 0:00:31]}  Kb7 {[%clk 0:00:02]} 51. Ra7+ {[%clk 0:00:31]}  Kxb6 {[%clk 0:00:02]} 52. c8=Q {[%clk 0:00:32]}  Kxa7 {[%clk 0:00:03]} 53. Qxg4 {[%clk 0:00:30]}  Rf7 {[%clk 0:00:02]} 54. Qxd4+ {[%clk 0:00:30]}  Ka8 {[%clk 0:00:02]} 55. Qd5+ {[%clk 0:00:30]}  Rb7 {[%clk 0:00:03]} 56. Kc4 {[%clk 0:00:31]}  Ka7 {[%clk 0:00:03]} 57. Qa5+ {[%clk 0:00:30]}  Kb8 {[%clk 0:00:03]} 58. Qd8+ {[%clk 0:00:31]}  Ka7 {[%clk 0:00:03]} 59. Kc5 {[%clk 0:00:32]}  Rb2 {[%clk 0:00:03]} 60. Qd4 {[%clk 0:00:31]}  Rb7 {[%clk 0:00:01]} 61. Kc6+ {[%clk 0:00:31]}  Ka8 {[%clk 0:00:02]} 62. a5 {[%clk 0:00:28]}  Rb1 {[%clk 0:00:01]} 63. Qd8+ {[%clk 0:00:23]}  Rb8 {[%clk 0:00:02]} 64. Qc7 {[%clk 0:00:20]}  Rb1 {[%clk 0:00:02]} 65. Qf4 {[%clk 0:00:17]}  Rc1+ {[%clk 0:00:01]} 66. Kb6 {[%clk 0:00:17]}  Rb1+ {[%clk 0:00:02]} 67. Kc5 {[%clk 0:00:17]}  Rb8 {[%clk 0:00:02]} 68. Qc7 {[%clk 0:00:15]}  Rb1 {[%clk 0:00:02]} 69. Qd8+ {[%clk 0:00:14]}  Ka7 {[%clk 0:00:02]} 70. Qd4 {[%clk 0:00:12]}  Ka8 {[%clk 0:00:01]} 71. Qe4+ {[%clk 0:00:12]}  Ka7 {[%clk 0:00:00]} 72. Qxb1 {[%clk 0:00:12]} 1-0


[Site "https://www.chess.com"]

[Event "Titled Tuesday Blitz August 08 Early 2023"]
[White "Sakun, Volodymyr"]
[Black "Demchenko, Anton"]
[WhiteFideId "14114062"]
[BlackFideId "4160258"]
[WhiteElo "2645"]
[BlackElo "2893"]
[Result "1/2-1/2"]
[Round "7"]
[TimeControl "180+1"]
[Date "2023.08.08"]
[WhiteClock "0:00:05"]
[BlackClock "0:00:04"]
[Board "36"]

1. e4 {[%clk 0:02:57]}  e5 {[%clk 0:02:59]} 2. Nf3 {[%clk 0:02:57]}  Nc6 {[%clk 0:02:59]} 3. Bb5 {[%clk 0:02:57]}  a6 {[%clk 0:02:59]} 4. Ba4 {[%clk 0:02:56]}  Nf6 {[%clk 0:02:59]} 5. d3 {[%clk 0:02:56]}  d6 {[%clk 0:02:59]} 6. h3 {[%clk 0:02:55]}  g6 {[%clk 0:02:57]} 7. O-O {[%clk 0:02:53]}  Bg7 {[%clk 0:02:57]} 8. Nc3 {[%clk 0:02:49]}  O-O {[%clk 0:02:57]} 9. Be3 {[%clk 0:02:46]}  b5 {[%clk 0:02:54]} 10. Bb3 {[%clk 0:02:45]}  Na5 {[%clk 0:02:55]} 11. Qd2 {[%clk 0:02:36]}  c5 {[%clk 0:02:44]} 12. Bg5 {[%clk 0:02:28]}  Nxb3 {[%clk 0:02:33]} 13. axb3 {[%clk 0:02:27]}  Bb7 {[%clk 0:02:18]} 14. Nh2 {[%clk 0:02:10]}  Qc7 {[%clk 0:02:07]} 15. Ng4 {[%clk 0:02:09]}  Nh5 {[%clk 0:02:00]} 16. Ne3 {[%clk 0:01:25]}  f6 {[%clk 0:01:55]} 17. Ned5 {[%clk 0:01:25]}  Qf7 {[%clk 0:01:56]} 18. Bh6 {[%clk 0:01:25]}  g5 {[%clk 0:01:43]} 19. Bxg7 {[%clk 0:01:24]}  Qxg7 {[%clk 0:01:44]} 20. Ne3 {[%clk 0:01:21]}  Qd7 {[%clk 0:01:32]} 21. Nf5 {[%clk 0:01:07]}  d5 {[%clk 0:01:18]} 22. Qe2 {[%clk 0:00:59]}  Nf4 {[%clk 0:01:17]} 23. Qe1 {[%clk 0:00:43]}  Kh8 {[%clk 0:01:07]} 24. Kh2 {[%clk 0:00:42]}  Rad8 {[%clk 0:01:05]} 25. g3 {[%clk 0:00:41]}  Ne6 {[%clk 0:01:06]} 26. Nxd5 {[%clk 0:00:37]}  Bxd5 {[%clk 0:01:05]} 27. exd5 {[%clk 0:00:38]}  Qxd5 {[%clk 0:00:29]} 28. Rxa6 {[%clk 0:00:38]}  Rfe8 {[%clk 0:00:27]} 29. Qe4 {[%clk 0:00:35]}  Qxe4 {[%clk 0:00:24]} 30. dxe4 {[%clk 0:00:36]}  Rd2 {[%clk 0:00:23]} 31. Ne3 {[%clk 0:00:28]}  Kg7 {[%clk 0:00:20]} 32. Kg2 {[%clk 0:00:26]}  Nd4 {[%clk 0:00:18]} 33. Rb6 {[%clk 0:00:21]}  b4 {[%clk 0:00:17]} 34. c3 {[%clk 0:00:21]}  Nxb3 {[%clk 0:00:12]} 35. cxb4 {[%clk 0:00:21]}  cxb4 {[%clk 0:00:13]} 36. Rxb4 {[%clk 0:00:21]}  Nc5 {[%clk 0:00:14]} 37. Rc4 {[%clk 0:00:18]}  Ne6 {[%clk 0:00:10]} 38. b4 {[%clk 0:00:17]}  Nd4 {[%clk 0:00:09]} 39. Rb1 {[%clk 0:00:15]}  Ra8 {[%clk 0:00:09]} 40. Rc7+ {[%clk 0:00:10]}  Kg6 {[%clk 0:00:09]} 41. Nd5 {[%clk 0:00:06]}  Raa2 {[%clk 0:00:08]} 42. Rf1 {[%clk 0:00:06]}  h5 {[%clk 0:00:05]} 43. Ne7+ {[%clk 0:00:06]}  Kf7 {[%clk 0:00:05]} 44. Nd5+ {[%clk 0:00:06]}  Ke8 {[%clk 0:00:04]} 45. Nxf6+ {[%clk 0:00:04]}  Kd8 {[%clk 0:00:05]} 46. Rd7+ {[%clk 0:00:03]}  Kc8 {[%clk 0:00:05]} 47. Rd5 {[%clk 0:00:03]}  h4 {[%clk 0:00:03]} 48. Rxe5 {[%clk 0:00:03]}  hxg3 {[%clk 0:00:03]} 49. Kxg3 {[%clk 0:00:04]}  Ne2+ {[%clk 0:00:04]} 50. Kg4 {[%clk 0:00:04]}  Nf4 {[%clk 0:00:04]} 51. Rxg5 {[%clk 0:00:05]}  Nd3 {[%clk 0:00:05]} 52. Kf5 {[%clk 0:00:04]}  Nxf2 {[%clk 0:00:05]} 53. h4 {[%clk 0:00:05]}  Nd3 {[%clk 0:00:04]} 54. Rg3 {[%clk 0:00:04]}  Nxb4 {[%clk 0:00:04]} 55. h5 {[%clk 0:00:05]}  Rh2 {[%clk 0:00:03]} 56. Kg6 {[%clk 0:00:05]}  Nc6 {[%clk 0:00:03]} 57. Kg7 {[%clk 0:00:03]}  Ne5 {[%clk 0:00:03]} 58. h6 {[%clk 0:00:03]}  Ra7+ {[%clk 0:00:03]} 59. Kg8 {[%clk 0:00:02]}  Rxh6 {[%clk 0:00:03]} 60. Rg7 {[%clk 0:00:02]}  Rxg7+ {[%clk 0:00:02]} 61. Kxg7 {[%clk 0:00:02]}  Rh4 {[%clk 0:00:03]} 62. Rc1+ {[%clk 0:00:03]}  Kb7 {[%clk 0:00:03]} 63. Nd5 {[%clk 0:00:03]}  Rxe4 {[%clk 0:00:02]} 64. Kf6 {[%clk 0:00:04]}  Nc6 {[%clk 0:00:01]} 65. Nc3 {[%clk 0:00:02]}  Re3 {[%clk 0:00:01]} 66. Kf5 {[%clk 0:00:03]}  Rf3+ {[%clk 0:00:01]} 67. Ke4 {[%clk 0:00:03]}  Rh3 {[%clk 0:00:02]} 68. Nd5 {[%clk 0:00:03]}  Rh4+ {[%clk 0:00:02]} 69. Kd3 {[%clk 0:00:03]}  Rh3+ {[%clk 0:00:02]} 70. Kc4 {[%clk 0:00:04]}  Rh4+ {[%clk 0:00:03]} 71. Kc5 {[%clk 0:00:04]}  Ne5 {[%clk 0:00:03]} 72. Kd6 {[%clk 0:00:04]}  Nd3 {[%clk 0:00:03]} 73. Rb1+ {[%clk 0:00:04]}  Ka7 {[%clk 0:00:03]} 74. Ra1+ {[%clk 0:00:04]}  Kb7 {[%clk 0:00:03]} 75. Rb1+ {[%clk 0:00:04]}  Ka7 {[%clk 0:00:03]} 76. Ra1+ {[%clk 0:00:05]}  Kb7 {[%clk 0:00:04]} 77. Rb1+ {[%clk 0:00:05]} 1/2-1/2


[Site "https://www.chess.com"]